[Event "Live Chess"]
[Site "Chess.com"]
[Date "2023.09.16"]
[Round "-"]
[White "KiwiDoFbi"]
[Black "AlphaKaua10"]
[Result "1/2-1/2"]
[WhiteElo "1265"]
[BlackElo "1099"]
[TimeControl "900+5"]
[EndTime "7:06:25 PDT"]
[Termination "Partida empatada por acordo"]

1. e4 {[%clk 0:15:02.9]} 1... c5 {[%clk 0:15:02]} 2. Nf3 {[%clk 0:15:04.4]} 2...
g6 {[%clk 0:15:06.2]} 3. d4 {[%clk 0:14:55.5]} 3... cxd4 {[%clk 0:15:09.1]} 4.
Nxd4 {[%clk 0:14:56.5]} 4... Bg7 {[%clk 0:15:12.8]} 5. Nc3 {[%clk 0:14:59.6]}
5... Qb6 {[%clk 0:15:16]} 6. Nb3 {[%clk 0:14:18.4]} 6... Nf6 {[%clk 0:15:10.1]}
7. Be3 {[%clk 0:14:18.4]} 7... Qc6 {[%clk 0:15:08.1]} 8. Bb5 {[%clk 0:14:13]}
8... Qd6 {[%clk 0:15:04.7]} 9. Qxd6 {[%clk 0:14:13.5]} 9... exd6 {[%clk
0:15:08.7]} 10. O-O-O {[%clk 0:14:14.2]} 10... O-O {[%clk 0:15:12.9]} 11. Rxd6
{[%clk 0:14:16]} 11... Ne8 {[%clk 0:15:13]} 12. Rdd1 {[%clk 0:14:03.9]} 12...
Bxc3 {[%clk 0:15:15.9]} 13. bxc3 {[%clk 0:14:07]} 13... a6 {[%clk 0:15:17.4]}
14. Bc4 {[%clk 0:14:04.9]} 14... d6 {[%clk 0:15:15.6]} 15. Bh6 {[%clk
0:14:03.6]} 15... Ng7 {[%clk 0:15:17.7]} 16. Rxd6 {[%clk 0:14:05.1]} 16... Nc6
{[%clk 0:15:19.3]} 17. Nd4 {[%clk 0:14:00.1]} 17... Nxd4 {[%clk 0:15:22]} 18.
cxd4 {[%clk 0:14:00.5]} 18... Be6 {[%clk 0:15:24.6]} 19. Bxe6 {[%clk 0:14:02]}
19... fxe6 {[%clk 0:15:29.5]} 20. Rd7 {[%clk 0:14:05.2]} 20... Rf7 {[%clk
0:15:33.1]} 21. Rxf7 {[%clk 0:14:08.2]} 21... Kxf7 {[%clk 0:15:36.4]} 22. Bxg7
{[%clk 0:14:12.2]} 22... Kxg7 {[%clk 0:15:40.4]} 23. f4 {[%clk 0:14:16.5]} 23...
Rf8 {[%clk 0:15:43.7]} 24. g3 {[%clk 0:14:19]} 24... b5 {[%clk 0:15:45.5]} 25.
h4 {[%clk 0:14:19.7]} 25... a5 {[%clk 0:15:46.5]} 26. Kd2 {[%clk 0:14:20.5]}
26... b4 {[%clk 0:15:50.4]} 27. Rb1 {[%clk 0:14:21.8]} 27... h6 {[%clk
0:15:46.8]} 28. Rf1 {[%clk 0:13:57.3]} 28... a4 {[%clk 0:15:45.4]} 29. g4 {[%clk
0:13:24.4]} 29... g5 {[%clk 0:15:45.2]} 30. hxg5 {[%clk 0:13:28.2]} 30... hxg5
{[%clk 0:15:49.2]} 31. f5 {[%clk 0:13:32.8]} 31... exf5 {[%clk 0:15:52.8]} 32.
exf5 {[%clk 0:13:35.5]} 32... Rd8 {[%clk 0:15:56]} 33. Kd3 {[%clk 0:13:38.9]}
33... Rc8 {[%clk 0:15:58.2]} 34. Rb1 {[%clk 0:13:38.2]} 34... Rc3+ {[%clk
0:16:01.6]} 35. Kd2 {[%clk 0:13:30.7]} 35... Rg3 {[%clk 0:16:03.2]} 36. Rxb4
{[%clk 0:13:35]} 36... Rxg4 {[%clk 0:16:07.3]} 37. Rxa4 {[%clk 0:13:39.6]} 37...
Rf4 {[%clk 0:16:10.1]} 38. Ke3 {[%clk 0:13:39.2]} 38... Kf6 {[%clk 0:16:09.4]}
39. Ra5 {[%clk 0:13:39.7]} 39... Rh4 {[%clk 0:16:09.9]} 40. c4 {[%clk
0:13:40.4]} 40... g4 {[%clk 0:16:13.7]} 41. c5 {[%clk 0:13:37.8]} 41... g3
{[%clk 0:16:17]} 42. c6 {[%clk 0:13:31.4]} 42... g2 {[%clk 0:16:21]} 43. Kf2
{[%clk 0:13:35]} 43... Rg4 {[%clk 0:16:25.1]} 44. Kg1 {[%clk 0:13:38.3]} 44...
Ke7 {[%clk 0:16:19.4]} 45. Re5+ {[%clk 0:13:40.4]} 45... Kd6 {[%clk 0:16:23]}
46. Re6+ {[%clk 0:13:36.2]} 46... Kc7 {[%clk 0:16:25.3]} 47. d5 {[%clk
0:13:37.9]} 47... Rd4 {[%clk 0:16:21.8]} 48. f6 {[%clk 0:13:39.6]} 48... Rxd5
{[%clk 0:16:23.8]} 49. f7 {[%clk 0:13:38.3]} 49... Rf5 {[%clk 0:16:26.2]} 50.
Kxg2 {[%clk 0:13:41.6]} 50... Rxf7 {[%clk 0:16:29]} 1/2-1/2

[Event "Live Chess"]
[Site "Chess.com"]
[Date "2023.09.16"]
[Round "-"]
[White "KauaShelby015"]
[Black "Abofado"]
[Result "1-0"]
[WhiteElo "1268"]
[BlackElo "582"]
[TimeControl "900+5"]
[EndTime "7:07:27 PDT"]
[Termination "KauaShelby015 venceu por desistência"]

1. e4 {[%clk 0:15:02]} 1... c6 {[%clk 0:15:04.9]} 2. Nf3 {[%clk 0:15:04.5]} 2...
Na6 {[%clk 0:15:09.1]} 3. Nc3 {[%clk 0:14:49.1]} 3... d5 {[%clk 0:15:10]} 4. d4
{[%clk 0:14:47.3]} 4... dxe4 {[%clk 0:15:13.1]} 5. Nxe4 {[%clk 0:14:50.8]} 5...
e5 {[%clk 0:15:14.6]} 6. Nxe5 {[%clk 0:14:40.7]} 6... f6 {[%clk 0:15:06.5]} 7.
Qh5+ {[%clk 0:14:39.8]} 7... g6 {[%clk 0:15:09.2]} 8. Nxg6 {[%clk 0:14:43]} 8...
hxg6 {[%clk 0:15:12.7]} 9. Qxh8 {[%clk 0:14:34.2]} 9... f5 {[%clk 0:15:14.2]}
10. Nc3 {[%clk 0:14:20.8]} 10... c5 {[%clk 0:15:12]} 11. d5 {[%clk 0:14:22]}
11... c4 {[%clk 0:15:07]} 12. Bxc4 {[%clk 0:14:18.6]} 12... Bc5 {[%clk
0:14:59.5]} 13. Qxg8+ {[%clk 0:14:18.3]} 13... Bf8 {[%clk 0:15:01.1]} 14. O-O
{[%clk 0:14:16.4]} 14... Qd6 {[%clk 0:14:41.8]} 15. Re1+ {[%clk 0:14:18.6]}
15... Kd8 {[%clk 0:14:37.5]} 16. Bg5+ {[%clk 0:14:16.7]} 16... Kc7 {[%clk
0:14:40.1]} 17. Nb5+ {[%clk 0:14:18.6]} 17... Kb6 {[%clk 0:14:43.3]} 18. Nxd6
{[%clk 0:14:21.9]} 1-0

[Event "Live Chess"]
[Site "Chess.com"]
[Date "2023.09.16"]
[Round "-"]
[White "ArthurMPRJ"]
[Black "GabrielGGCF"]
[Result "1-0"]
[WhiteElo "1386"]
[BlackElo "1419"]
[TimeControl "900+5"]
[EndTime "7:07:39 PDT"]
[Termination "ArthurMPRJ venceu por desistência"]

1. d4 {[%clk 0:15:02.4]} 1... d5 {[%clk 0:15:01]} 2. c4 {[%clk 0:15:06.2]} 2...
c6 {[%clk 0:15:02.1]} 3. Nf3 {[%clk 0:15:07.4]} 3... Nf6 {[%clk 0:15:03.6]} 4.
e3 {[%clk 0:15:10.9]} 4... Bf5 {[%clk 0:15:06.3]} 5. Nc3 {[%clk 0:15:13.7]} 5...
e6 {[%clk 0:15:08.9]} 6. Bd3 {[%clk 0:15:16.8]} 6... Bxd3 {[%clk 0:15:06.5]} 7.
Qxd3 {[%clk 0:15:21.7]} 7... Bb4 {[%clk 0:15:08.9]} 8. O-O {[%clk 0:15:23.3]}
8... O-O {[%clk 0:15:04.9]} 9. a3 {[%clk 0:15:18.7]} 9... Ba5 {[%clk 0:15:04.9]}
10. b4 {[%clk 0:15:18.4]} 10... Bc7 {[%clk 0:15:08.7]} 11. e4 {[%clk 0:15:20]}
11... h6 {[%clk 0:15:01.2]} 12. Bb2 {[%clk 0:15:20.9]} 12... Ng4 {[%clk
0:14:46.4]} 13. e5 {[%clk 0:15:12.3]} 13... h5 {[%clk 0:14:30.9]} 14. h3 {[%clk
0:15:13.4]} 14... Nh6 {[%clk 0:14:34.9]} 15. Rac1 {[%clk 0:15:10.8]} 15... f6
{[%clk 0:14:37.8]} 16. Rfe1 {[%clk 0:15:12.2]} 16... fxe5 {[%clk 0:14:39.1]} 17.
Nxe5 {[%clk 0:15:11.9]} 17... Qf6 {[%clk 0:14:35.1]} 18. Rc2 {[%clk 0:14:56.7]}
18... Bxe5 {[%clk 0:14:22.9]} 19. Rxe5 {[%clk 0:14:30.1]} 19... Nf5 {[%clk
0:14:19.4]} 20. Rce2 {[%clk 0:14:23.3]} 20... Re8 {[%clk 0:14:13.2]} 21. Rxf5
{[%clk 0:14:19.6]} 21... Qxf5 {[%clk 0:13:50.8]} 22. Qxf5 {[%clk 0:14:21.7]}
22... exf5 {[%clk 0:13:54.5]} 23. Rxe8+ {[%clk 0:14:26.1]} 23... Kf7 {[%clk
0:13:58.6]} 24. Rc8 {[%clk 0:14:22.8]} 24... dxc4 {[%clk 0:13:45.1]} 25. Na4
{[%clk 0:14:13]} 25... Ke7 {[%clk 0:13:41.8]} 26. Nc5 {[%clk 0:14:08.7]} 26...
b6 {[%clk 0:13:39.4]} 27. Na6 {[%clk 0:14:08.2]} 27... Kd7 {[%clk 0:13:37.3]}
28. Rxb8 {[%clk 0:14:10]} 28... Rxb8 {[%clk 0:13:35.4]} 29. Nxb8+ {[%clk
0:14:14.9]} 29... Kc7 {[%clk 0:13:34.3]} 30. Na6+ {[%clk 0:14:13.9]} 30... Kb7
{[%clk 0:13:37.9]} 31. b5 {[%clk 0:14:16.1]} 31... cxb5 {[%clk 0:13:40.1]} 32.
Nb4 {[%clk 0:14:17.5]} 32... a5 {[%clk 0:13:41.3]} 33. Nc2 {[%clk 0:14:16.1]}
33... Kc6 {[%clk 0:13:43]} 34. Kf1 {[%clk 0:14:15.8]} 34... Kd5 {[%clk
0:13:44.3]} 35. f3 {[%clk 0:14:17.5]} 35... b4 {[%clk 0:13:48]} 36. axb4 {[%clk
0:14:20.9]} 36... axb4 {[%clk 0:13:52.1]} 37. Nxb4+ {[%clk 0:14:25.3]} 37... Kd6
{[%clk 0:13:49.8]} 38. Ke2 {[%clk 0:14:24.7]} 38... b5 {[%clk 0:13:51.5]} 39.
Ke3 {[%clk 0:14:28.6]} 39... g5 {[%clk 0:13:53.2]} 40. h4 {[%clk 0:14:23.3]}
40... g4 {[%clk 0:13:48.8]} 41. Kf4 {[%clk 0:14:26.8]} 41... Ke6 {[%clk
0:13:50.1]} 42. d5+ {[%clk 0:14:29.7]} 42... Kd6 {[%clk 0:13:52.4]} 43. Bd4
{[%clk 0:14:30.8]} 43... Kd7 {[%clk 0:13:54.9]} 44. Kxf5 {[%clk 0:14:33.5]}
44... Ke7 {[%clk 0:13:57.2]} 45. fxg4 {[%clk 0:14:35.2]} 45... hxg4 {[%clk
0:14:00.5]} 46. h5 {[%clk 0:14:39.8]} 1-0

[Event "Live Chess"]
[Site "Chess.com"]
[Date "2023.09.16"]
[Round "-"]
[White "vitinho_lawliet"]
[Black "Samueeeseeel"]
[Result "0-1"]
[WhiteElo "934"]
[BlackElo "897"]
[TimeControl "900+5"]
[EndTime "7:08:10 PDT"]
[Termination "Samueeeseeel venceu por xeque-mate"]

1. e4 {[%clk 0:14:56.6]} 1... c5 {[%clk 0:15:02.5]} 2. Nf3 {[%clk 0:14:54.2]}
2... Nc6 {[%clk 0:15:04.8]} 3. Nc3 {[%clk 0:14:51.4]} 3... e5 {[%clk 0:15:04.5]}
4. Bc4 {[%clk 0:14:45]} 4... g6 {[%clk 0:15:05.3]} 5. d3 {[%clk 0:14:47.4]} 5...
f6 {[%clk 0:14:48.7]} 6. O-O {[%clk 0:14:39.4]} 6... Nge7 {[%clk 0:14:48.6]} 7.
Na4 {[%clk 0:14:24]} 7... d6 {[%clk 0:14:47.2]} 8. Bb5 {[%clk 0:14:19.6]} 8...
Bg7 {[%clk 0:14:37.9]} 9. Bxc6+ {[%clk 0:13:50.7]} 9... Nxc6 {[%clk 0:14:32.5]}
10. Nc3 {[%clk 0:13:53]} 10... Be6 {[%clk 0:14:35.5]} 11. Be3 {[%clk 0:13:50.7]}
11... O-O {[%clk 0:14:29]} 12. Nd5 {[%clk 0:13:51.2]} 12... Bxd5 {[%clk
0:14:10]} 13. exd5 {[%clk 0:13:55.2]} 13... Nd4 {[%clk 0:14:13.9]} 14. Bxd4
{[%clk 0:13:53.3]} 14... cxd4 {[%clk 0:14:17.2]} 15. a4 {[%clk 0:13:44.1]} 15...
Qd7 {[%clk 0:14:08.4]} 16. h3 {[%clk 0:13:39.3]} 16... Qf7 {[%clk 0:13:56.2]}
17. Nd2 {[%clk 0:13:23.2]} 17... Qxd5 {[%clk 0:13:54.1]} 18. Ne4 {[%clk
0:13:27.3]} 18... b6 {[%clk 0:13:55.6]} 19. g4 {[%clk 0:13:28.6]} 19... a6
{[%clk 0:13:50.7]} 20. c3 {[%clk 0:13:08.5]} 20... b5 {[%clk 0:13:53.4]} 21.
cxd4 {[%clk 0:13:01.6]} 21... Qxd4 {[%clk 0:13:45.4]} 22. axb5 {[%clk
0:12:58.8]} 22... axb5 {[%clk 0:13:48.1]} 23. Rxa8 {[%clk 0:13:00.9]} 23... Rxa8
{[%clk 0:13:50.3]} 24. Qb3+ {[%clk 0:13:01.9]} 24... d5 {[%clk 0:13:38.1]} 25.
Nd6 {[%clk 0:12:50]} 25... b4 {[%clk 0:13:16]} 26. Nb5 {[%clk 0:12:50.8]} 26...
Qc5 {[%clk 0:13:15.4]} 27. h4 {[%clk 0:12:11.2]} 27... Qxb5 {[%clk 0:13:16.2]}
28. g5 {[%clk 0:12:14.9]} 28... f5 {[%clk 0:13:09.6]} 29. f4 {[%clk 0:12:15.2]}
29... e4 {[%clk 0:12:51.7]} 30. Rd1 {[%clk 0:12:01.5]} 30... Bd4+ {[%clk
0:12:39]} 31. Kg2 {[%clk 0:11:59.7]} 31... e3 {[%clk 0:12:34.6]} 32. Kf3 {[%clk
0:11:47.2]} 32... Re8 {[%clk 0:12:29.3]} 33. Ke2 {[%clk 0:11:49.8]} 33... Bb6
{[%clk 0:12:24.7]} 34. Rf1 {[%clk 0:11:31.4]} 34... Re7 {[%clk 0:11:56.4]} 35.
Rf3 {[%clk 0:11:29.3]} 35... Re8 {[%clk 0:11:49.8]} 36. Rg3 {[%clk 0:11:14]}
36... Bd4 {[%clk 0:11:47.6]} 37. Rf3 {[%clk 0:11:13.1]} 37... Qc5 {[%clk
0:11:51.1]} 38. Rg3 {[%clk 0:11:07.3]} 38... Kg7 {[%clk 0:11:17.6]} 39. Rg1
{[%clk 0:11:06.8]} 39... h6 {[%clk 0:11:19.9]} 40. Rh1 {[%clk 0:10:54.5]} 40...
Rh8 {[%clk 0:11:17.1]} 41. Rg1 {[%clk 0:10:40.8]} 41... hxg5 {[%clk 0:11:16.9]}
42. hxg5 {[%clk 0:10:44]} 42... Rh2+ {[%clk 0:11:20.5]} 43. Ke1 {[%clk
0:10:40.6]} 43... Rxb2 {[%clk 0:11:23.2]} 44. Qa4 {[%clk 0:10:36.2]} 44... Qc3+
{[%clk 0:11:22.6]} 45. Kf1 {[%clk 0:10:33.4]} 45... Qc1+ {[%clk 0:11:25.3]} 46.
Qd1 {[%clk 0:10:34.6]} 46... Qxd1# {[%clk 0:11:28.3]} 0-1

[Event "Live Chess"]
[Site "Chess.com"]
[Date "2023.09.16"]
[Round "-"]
[White "xadrecarloso"]
[Black "AnthonyGabriel1"]
[Result "0-1"]
[WhiteElo "957"]
[BlackElo "2182"]
[TimeControl "900+5"]
[EndTime "7:09:19 PDT"]
[Termination "AnthonyGabriel1 venceu por desistência"]

1. d4 {[%clk 0:15:02.9]} 1... c5 {[%clk 0:15:01.4]} 2. Nf3 {[%clk 0:15:02.8]}
2... cxd4 {[%clk 0:15:05.4]} 3. Nxd4 {[%clk 0:15:05.7]} 3... Nf6 {[%clk
0:15:08.6]} 4. Nc3 {[%clk 0:15:06.6]} 4... d5 {[%clk 0:15:11.3]} 5. Bf4 {[%clk
0:15:04.2]} 5... Nc6 {[%clk 0:15:12.8]} 6. e3 {[%clk 0:14:51.4]} 6... g6 {[%clk
0:14:57.7]} 7. g3 {[%clk 0:14:45.1]} 7... Bg7 {[%clk 0:14:56.4]} 8. Bg2 {[%clk
0:14:47]} 8... O-O {[%clk 0:14:46.4]} 9. Nxc6 {[%clk 0:14:16.7]} 9... bxc6
{[%clk 0:14:51.3]} 10. e4 {[%clk 0:13:59.6]} 10... d4 {[%clk 0:14:54.8]} 11. Ne2
{[%clk 0:13:59.3]} 11... c5 {[%clk 0:14:58.1]} 12. c3 {[%clk 0:14:01.8]} 12...
d3 {[%clk 0:14:50]} 13. Ng1 {[%clk 0:13:55]} 13... Bb7 {[%clk 0:14:50.3]} 14.
Qf3 {[%clk 0:13:16.4]} 14... Bxe4 {[%clk 0:14:53.6]} 0-1

[Event "Live Chess"]
[Site "Chess.com"]
[Date "2023.09.16"]
[Round "-"]
[White "Giulliajapa007"]
[Black "z_anne_ari"]
[Result "1-0"]
[WhiteElo "997"]
[BlackElo "1263"]
[TimeControl "900+5"]
[EndTime "7:09:51 PDT"]
[Termination "Giulliajapa007 venceu por xeque-mate"]

1. e4 {[%clk 0:15:02.4]} 1... d5 {[%clk 0:15:03.6]} 2. e5 {[%clk 0:15:00.9]}
2... f6 {[%clk 0:15:06.9]} 3. d4 {[%clk 0:14:56.6]} 3... Nc6 {[%clk 0:15:08.4]}
4. Nf3 {[%clk 0:14:56.1]} 4... Bg4 {[%clk 0:15:05]} 5. Be2 {[%clk 0:14:54.4]}
5... Bxf3 {[%clk 0:15:09.1]} 6. Bxf3 {[%clk 0:14:56.1]} 6... fxe5 {[%clk
0:15:13.3]} 7. dxe5 {[%clk 0:14:54.3]} 7... Nxe5 {[%clk 0:15:14.6]} 8. Qe2
{[%clk 0:14:53.5]} 8... Qd6 {[%clk 0:15:10.7]} 9. O-O {[%clk 0:14:46.1]} 9...
Nxf3+ {[%clk 0:15:14.2]} 10. Qxf3 {[%clk 0:14:49.4]} 10... O-O-O {[%clk
0:15:18.3]} 11. Bf4 {[%clk 0:14:45.7]} 11... e5 {[%clk 0:15:19.3]} 12. Bg5
{[%clk 0:14:40.2]} 12... Re8 {[%clk 0:15:22]} 13. Re1 {[%clk 0:14:41.8]} 13...
e4 {[%clk 0:15:23.8]} 14. Qh3+ {[%clk 0:14:41.8]} 14... Kb8 {[%clk 0:15:22.5]}
15. g3 {[%clk 0:14:39.9]} 15... h6 {[%clk 0:15:24.6]} 16. Bf4 {[%clk 0:14:42.8]}
16... Qb4 {[%clk 0:15:22.4]} 17. Rd1 {[%clk 0:14:30]} 17... Qxb2 {[%clk
0:15:18.9]} 18. Rxd5 {[%clk 0:14:32.5]} 18... Qxa1 {[%clk 0:15:18.7]} 19. Qd7
{[%clk 0:14:23.9]} 19... Qxb1+ {[%clk 0:15:18.4]} 20. Kg2 {[%clk 0:14:28]} 20...
Rc8 {[%clk 0:14:56]} 21. Qd8 {[%clk 0:14:21.8]} 21... Be7 {[%clk 0:14:55]} 22.
Bxc7+ {[%clk 0:13:56.3]} 22... Ka8 {[%clk 0:14:47.6]} 23. Qxc8# {[%clk
0:13:59.1]} 1-0

[Event "Live Chess"]
[Site "Chess.com"]
[Date "2023.09.16"]
[Round "-"]
[White "icarohm"]
[Black "fernanndodod"]
[Result "1-0"]
[WhiteElo "1888"]
[BlackElo "1954"]
[TimeControl "900+5"]
[EndTime "7:10:13 PDT"]
[Termination "icarohm venceu por desistência"]

1. e4 {[%clk 0:15:03.2]} 1... e5 {[%clk 0:15:03.4]} 2. Nf3 {[%clk 0:15:06.8]}
2... Nc6 {[%clk 0:15:07.2]} 3. Bc4 {[%clk 0:15:10.3]} 3... Bc5 {[%clk
0:15:10.5]} 4. d3 {[%clk 0:15:14]} 4... Nf6 {[%clk 0:15:13]} 5. O-O {[%clk
0:15:17.5]} 5... d6 {[%clk 0:15:16.9]} 6. h3 {[%clk 0:15:20.9]} 6... Be6 {[%clk
0:15:21.2]} 7. Nbd2 {[%clk 0:15:16.2]} 7... Qe7 {[%clk 0:15:23.8]} 8. c3 {[%clk
0:15:09.4]} 8... O-O {[%clk 0:15:24]} 9. Bxe6 {[%clk 0:15:09]} 9... fxe6 {[%clk
0:15:26.7]} 10. Nc4 {[%clk 0:15:09.4]} 10... Rad8 {[%clk 0:15:25.9]} 11. a4
{[%clk 0:15:05.1]} 11... a5 {[%clk 0:15:27.7]} 12. Bd2 {[%clk 0:14:29.7]} 12...
d5 {[%clk 0:15:30.7]} 13. Ncxe5 {[%clk 0:14:14.4]} 13... Nxe5 {[%clk 0:15:31.2]}
14. Nxe5 {[%clk 0:14:16.4]} 14... dxe4 {[%clk 0:15:34.9]} 15. d4 {[%clk
0:14:17.7]} 15... Bd6 {[%clk 0:15:37.3]} 16. Bf4 {[%clk 0:14:17.4]} 16... Bxe5
{[%clk 0:15:37.7]} 17. Bxe5 {[%clk 0:14:21.3]} 17... Nd5 {[%clk 0:15:31.7]} 18.
Qe2 {[%clk 0:14:18.6]} 18... Nf4 {[%clk 0:15:20.6]} 19. Qxe4 {[%clk 0:14:14.5]}
19... Qg5 {[%clk 0:15:20.5]} 20. Bxf4 {[%clk 0:14:00.2]} 20... Qxf4 {[%clk
0:15:19.2]} 21. Qxe6+ {[%clk 0:14:03]} 21... Kh8 {[%clk 0:15:23.5]} 22. Rae1
{[%clk 0:13:56]} 22... h6 {[%clk 0:15:22.7]} 23. Re3 {[%clk 0:13:40.1]} 23...
Rf6 {[%clk 0:15:21.3]} 24. Qe7 {[%clk 0:13:22.4]} 24... Rdf8 {[%clk 0:15:23.2]}
25. Rf3 {[%clk 0:13:24.8]} 25... Qg5 {[%clk 0:15:14.7]} 26. Qxf8+ {[%clk
0:12:56.1]} 26... Rxf8 {[%clk 0:15:16.5]} 27. Rxf8+ {[%clk 0:12:59.7]} 27... Kh7
{[%clk 0:15:21.4]} 28. Re1 {[%clk 0:12:47.8]} 28... Qd2 {[%clk 0:15:22.4]} 29.
Ree8 {[%clk 0:12:44.8]} 29... Qc1+ {[%clk 0:15:23.2]} 30. Kh2 {[%clk 0:12:45.4]}
30... Qxb2 {[%clk 0:15:27.2]} 31. Rh8+ {[%clk 0:12:47.8]} 31... Kg6 {[%clk
0:15:30.7]} 32. Re3 {[%clk 0:12:24.5]} 32... Qxf2 {[%clk 0:15:31.7]} 33. Rhe8
{[%clk 0:12:26.5]} 33... Qf4+ {[%clk 0:15:33.2]} 34. Kg1 {[%clk 0:12:29.4]}
34... b6 {[%clk 0:15:19.5]} 35. R8e4 {[%clk 0:12:24.2]} 35... Qf8 {[%clk
0:15:14.9]} 36. Rg4+ {[%clk 0:11:59.3]} 36... Kh7 {[%clk 0:15:16.8]} 37. Reg3
{[%clk 0:11:56.8]} 37... Qe7 {[%clk 0:15:06.7]} 38. Kh2 {[%clk 0:11:49.3]} 38...
c6 {[%clk 0:15:06.5]} 39. Rg6 {[%clk 0:11:49.8]} 39... b5 {[%clk 0:15:09.1]} 40.
axb5 {[%clk 0:11:44.8]} 40... cxb5 {[%clk 0:15:12]} 41. Rc6 {[%clk 0:11:35.5]}
41... b4 {[%clk 0:15:05]} 42. cxb4 {[%clk 0:11:39.4]} 42... axb4 {[%clk
0:15:02.9]} 43. d5 {[%clk 0:11:36.4]} 43... h5 {[%clk 0:15:04.1]} 44. Re6 {[%clk
0:11:18.2]} 44... Qd7 {[%clk 0:15:02.9]} 45. Rd3 {[%clk 0:11:06.6]} 45... b3
{[%clk 0:15:01.1]} 46. Re2 {[%clk 0:10:55.9]} 46... Qc7+ {[%clk 0:15:01.5]} 47.
d6 {[%clk 0:10:57.4]} 47... Qd7 {[%clk 0:14:56.1]} 48. Red2 {[%clk 0:10:58.1]}
48... Qe6 {[%clk 0:14:45.5]} 49. d7 {[%clk 0:10:54.8]} 49... Qe5+ {[%clk
0:14:48.9]} 50. g3 {[%clk 0:10:57.2]} 50... h4 {[%clk 0:14:52.3]} 51. d8=Q
{[%clk 0:10:58]} 51... hxg3+ {[%clk 0:14:56.3]} 52. Rxg3 {[%clk 0:11:01.3]}
52... b2 {[%clk 0:15:00.3]} 53. Qh4+ {[%clk 0:10:57.9]} 53... Kg8 {[%clk
0:15:04.1]} 54. Rd1 {[%clk 0:10:59.4]} 54... Qe2+ {[%clk 0:15:06.5]} 55. Rg2
{[%clk 0:10:46.1]} 55... Qxd1 {[%clk 0:15:08.3]} 56. Rxb2 {[%clk 0:10:43.6]}
56... Qd6+ {[%clk 0:15:08.6]} 57. Qg3 {[%clk 0:10:44.6]} 57... Qf6 {[%clk
0:15:10.4]} 58. Rb8+ {[%clk 0:10:42.6]} 58... Kh7 {[%clk 0:15:12.8]} 59. h4
{[%clk 0:10:45.2]} 59... Qf1 {[%clk 0:15:11.8]} 60. Rb2 {[%clk 0:10:32.2]} 60...
Qc1 {[%clk 0:15:12.6]} 61. Rg2 {[%clk 0:10:26.2]} 61... Qa1 {[%clk 0:15:15.6]}
62. h5 {[%clk 0:10:26.7]} 62... Qf6 {[%clk 0:15:18.5]} 63. Kh3 {[%clk 0:10:28]}
63... Qe6+ {[%clk 0:15:19.1]} 64. Kh4 {[%clk 0:10:28.4]} 64... Qe4+ {[%clk
0:15:17.7]} 65. Qg4 {[%clk 0:10:30]} 65... Qe1+ {[%clk 0:15:21.1]} 66. Rg3
{[%clk 0:10:30.2]} 66... Qh1+ {[%clk 0:15:24.1]} 67. Qh3 {[%clk 0:10:21.5]}
67... Qe4+ {[%clk 0:15:27]} 68. Rg4 {[%clk 0:10:24.8]} 68... Qe1+ {[%clk
0:15:30.5]} 69. Qg3 {[%clk 0:10:19.5]} 69... Qh1+ {[%clk 0:15:32.8]} 70. Kg5
{[%clk 0:10:20.2]} 70... Qd5+ {[%clk 0:15:36.3]} 71. Kf4 {[%clk 0:10:21.5]}
71... Qd4+ {[%clk 0:15:37.8]} 72. Kf3 {[%clk 0:10:25.2]} 72... Qd3+ {[%clk
0:15:41.7]} 73. Kg2 {[%clk 0:10:29]} 73... Qe2+ {[%clk 0:15:44.4]} 74. Kh3
{[%clk 0:10:20.5]} 74... Qf1+ {[%clk 0:15:47.9]} 75. Qg2 {[%clk 0:10:23.2]}
75... Qd3+ {[%clk 0:15:50.8]} 76. Kh2 {[%clk 0:10:17.8]} 76... Qd6+ {[%clk
0:15:49.3]} 77. Kh1 {[%clk 0:10:21]} 77... Qd1+ {[%clk 0:15:52.8]} 78. Qg1
{[%clk 0:10:23.7]} 78... Qd5+ {[%clk 0:15:55.5]} 79. Rg2 {[%clk 0:10:24.6]}
79... Qxh5+ {[%clk 0:15:58.7]} 80. Rh2 {[%clk 0:10:28.4]} 80... Qxh2+ {[%clk
0:16:01.5]} 1-0

[Event "Live Chess"]
[Site "Chess.com"]
[Date "2023.09.16"]
[Round "-"]
[White "ravypintodiniz"]
[Black "dani_reitas"]
[Result "1-0"]
[WhiteElo "2029"]
[BlackElo "1012"]
[TimeControl "900+5"]
[EndTime "7:11:22 PDT"]
[Termination "ravypintodiniz venceu por xeque-mate"]

1. e4 {[%clk 0:15:03.7]} 1... e6 {[%clk 0:15:03.7]} 2. d4 {[%clk 0:15:06.3]}
2... d5 {[%clk 0:15:07.5]} 3. exd5 {[%clk 0:15:08.9]} 3... exd5 {[%clk
0:15:11.4]} 4. Bd3 {[%clk 0:15:13.4]} 4... Nf6 {[%clk 0:15:15.1]} 5. Nf3 {[%clk
0:15:18]} 5... Be7 {[%clk 0:15:19.3]} 6. O-O {[%clk 0:15:21.9]} 6... O-O {[%clk
0:15:23.4]} 7. h3 {[%clk 0:15:26.3]} 7... c5 {[%clk 0:15:27.1]} 8. c3 {[%clk
0:15:30.4]} 8... Nc6 {[%clk 0:15:30.8]} 9. dxc5 {[%clk 0:15:30.7]} 9... Bxc5
{[%clk 0:15:33.7]} 10. Bg5 {[%clk 0:15:35.2]} 10... Re8 {[%clk 0:15:09.3]} 11.
Qc2 {[%clk 0:15:29.9]} 11... Qd6 {[%clk 0:14:27.6]} 12. Bxf6 {[%clk 0:15:27.6]}
12... Qxf6 {[%clk 0:14:30.2]} 13. Bxh7+ {[%clk 0:15:31.2]} 13... Kf8 {[%clk
0:14:33.6]} 14. Bd3 {[%clk 0:15:31.3]} 14... Ne5 {[%clk 0:14:34.9]} 15. Nxe5
{[%clk 0:15:23.2]} 15... Rxe5 {[%clk 0:14:38.2]} 16. b4 {[%clk 0:14:33.3]} 16...
Bb6 {[%clk 0:14:35.8]} 17. Qd2 {[%clk 0:13:19.8]} 17... Bf5 {[%clk 0:13:43.6]}
18. Bxf5 {[%clk 0:13:16]} 18... Rxf5 {[%clk 0:13:46.6]} 19. Na3 {[%clk
0:13:05.1]} 19... a6 {[%clk 0:13:45.9]} 20. Nc2 {[%clk 0:12:10.5]} 20... Rd8
{[%clk 0:13:26.7]} 21. Ne3 {[%clk 0:12:04.6]} 21... Bxe3 {[%clk 0:12:04]} 22.
fxe3 {[%clk 0:11:59.8]} 22... Re8 {[%clk 0:11:53.6]} 23. Rxf5 {[%clk 0:11:48.7]}
23... Qxf5 {[%clk 0:11:54]} 24. Rf1 {[%clk 0:11:40.5]} 24... Qe6 {[%clk
0:11:51.2]} 25. Rf3 {[%clk 0:11:40.7]} 25... b5 {[%clk 0:11:40]} 26. Kf2 {[%clk
0:11:34.9]} 26... f6 {[%clk 0:11:03.2]} 27. Qd4 {[%clk 0:11:28.4]} 27... Qe4
{[%clk 0:10:36.6]} 28. Qxe4 {[%clk 0:11:21.9]} 28... dxe4 {[%clk 0:10:40]} 29.
Rf4 {[%clk 0:11:22.3]} 29... Kf7 {[%clk 0:10:43.1]} 30. Ke2 {[%clk 0:11:21.2]}
30... g5 {[%clk 0:10:42]} 31. Rf5 {[%clk 0:11:25.2]} 31... Ke6 {[%clk
0:10:23.5]} 32. Rc5 {[%clk 0:11:25.9]} 32... Ra8 {[%clk 0:10:16.3]} 33. Rc6+
{[%clk 0:11:28.2]} 33... Kd5 {[%clk 0:10:18]} 34. Rxf6 {[%clk 0:11:28.9]} 34...
Kc4 {[%clk 0:10:19.6]} 35. Rc6+ {[%clk 0:11:32.8]} 35... Kd5 {[%clk 0:10:22.3]}
36. Rc5+ {[%clk 0:11:37.7]} 36... Kd6 {[%clk 0:10:23.7]} 37. Rxg5 {[%clk
0:11:42.6]} 37... Rc8 {[%clk 0:10:24.8]} 38. Rc5 {[%clk 0:11:46.4]} 38... Rg8
{[%clk 0:10:22.7]} 39. g4 {[%clk 0:11:43.1]} 39... Rh8 {[%clk 0:10:20.1]} 40.
Rh5 {[%clk 0:11:47.2]} 40... Rc8 {[%clk 0:10:22.8]} 41. Kd2 {[%clk 0:11:51]}
41... Rf8 {[%clk 0:10:23.7]} 42. Rh6+ {[%clk 0:11:54.8]} 42... Kd5 {[%clk
0:10:22]} 43. Rh5+ {[%clk 0:11:57.7]} 43... Kc4 {[%clk 0:10:21.9]} 44. Rc5#
{[%clk 0:12:00.9]} 1-0